bitfinex/quotes_ETHUSD_20240926
["timestamp","ask_amount","ask_price","bid_price","bid_amount"]
[1727348715485,3.79753,2633.3,2633.0,0.7882]
[1727348715689,3.79766,2633.2,2633.1,0.05755416]
[1727348715986,4.56766,2633.2,2633.1,0.05755416]
[1727348716386,3.7983,2632.8,2632.6,0.7626]
[1727348716888,3.7983,2632.8,2632.7,0.05776505]
[1727348717072,3.79813,2632.9,2632.7,0.05776505]
[1727348717675,3.79805,2633.0,2632.7,0.05776505]
[1727348717676,3.79823,2632.8,2632.7,0.05776505]
[1727348718003,5.107858,2632.8,2632.7,0.05776505]
[1727348718206,3.79867,2632.5,2632.4,0.7947]
[1727348720904,3.79896,2632.3,2632.0,0.7567]
[1727348721319,3.79918,2632.2,2632.0,0.7567]
[1727348721896,3.79924,2632.1,2632.0,0.7567]
[1727348722207,7.59839,2632.2,2632.0,0.7567]
[1727348722373,3.79918,2632.2,2632.0,0.7567]
[1727348723206,3.79924,2632.1,2632.0,0.7567]
[1727348723498,3.79924,2632.1,2631.8,0.7699]
[1727348723499,3.79953,2631.9,2631.8,0.7699]
[1727348723929,3.79953,2631.9,2631.8,0.84100827]
[1727348725789,3.79941,2632.0,2631.8,0.84100827]
[1727348725964,3.79941,2632.0,2631.9,3.7906343]
[1727348726446,3.79941,2632.0,2631.9,3.85352371]
[1727348728471,3.79941,2632.0,2631.9,0.06288941]
[1727348732073,3.79941,2632.0,2631.9,0.10538531]
[1727348733389,4.639296,2632.0,2631.9,0.10538531]
[1727348734690,4.639296,2632.0,2631.6,0.8628782]
[1727348734691,3.79982,2631.7,2631.6,0.8628782]
[1727348734873,3.79982,2631.7,2631.6,0.96849451]
[1727348740333,3.79982,2631.7,2631.6,0.14429451]
[1727348742136,5.380772,2631.7,2631.6,0.14429451]
[1727348742895,4.559772,2631.7,2631.6,0.14429451]
[1727348743124,3.79982,2631.7,2631.6,0.14429451]
[1727348745717,4.62892,2631.7,2631.6,0.14429451]
[1727348746309,7.62892,2631.7,2631.6,0.14429451]
[1727348746543,8.17892,2631.7,2631.6,0.14429451]
[1727348747002,8.17892,2631.7,2631.6,0.0386782]
[1727348747202,9.376782,2631.7,2631.6,0.0386782]
[1727348749743,9.376782,2631.7,2631.6,0.14110935]
[1727348749744,7.997682,2631.7,2631.6,0.14110935]
[1727348749951,6.79982,2631.7,2631.6,0.0386782]
[1727348750128,6.79982,2631.7,2631.6,0.14110935]
[1727348750333,6.79982,2631.7,2631.6,0.0386782]
[1727348750643,6.79982,2631.7,2631.6,0.14132866]
[1727348750842,7.942692,2631.7,2631.6,0.0386782]
[1727348751043,7.942692,2631.7,2631.6,0.14132866]
[1727348751345,6.79982,2631.7,2631.6,0.14132866]
[1727348753449,3.79958,2631.9,2631.6,0.14132866]
[1727348753651,3.79958,2631.9,2631.7,0.7766]
[1727348753652,3.79968,2631.8,2631.7,0.7766]
[1727348753961,3.79968,2631.8,2631.7,0.87931964]
[1727348754717,3.79958,2631.9,2631.7,0.87931964]
[1727348756661,3.79968,2631.8,2631.7,0.87931964]
[1727348757833,3.79968,2631.8,2631.7,0.10271964]
[1727348759133,3.79958,2631.9,2631.7,0.10271964]
[1727348759523,3.79968,2631.8,2631.7,0.10271964]
[1727348762924,6.79941,2632.0,2631.7,0.92741964]
[1727348763117,6.79941,2632.0,2631.7,1.78333806]
[1727348763624,3.79913,2632.2,2631.7,1.78333806]
[1727348763625,3.0,2632.1,2631.7,1.78333806]
[1727348763929,3.79948,2632.0,2631.7,1.78333806]
[1727348764180,3.79948,2632.0,2631.8,0.56151326]
[1727348764378,3.79948,2632.0,2631.8,2.31144772]
[1727348764571,3.79948,2632.0,2631.9,0.10236612]
[1727348766992,3.79927,2632.1,2631.9,0.10236612]
[1727348767409,6.7991,2632.2,2632.0,2.54343446]
[1727348767613,3.79924,2632.1,2632.0,2.54343446]
[1727348767838,3.79924,2632.1,2632.0,2.64572756]
[1727348768398,3.79924,2632.1,2632.0,0.8957931]
[1727348769133,3.79924,2632.1,2632.0,0.1022931]
[1727348769332,3.79968,2631.8,2631.6,0.0386782]
[1727348769540,3.79982,2631.7,2631.6,0.0386782]
[1727348769908,3.79982,2631.7,2631.6,0.14083674]
[1727348773505,3.79969,2631.8,2631.6,0.14083674]
[1727348774342,3.79982,2631.7,2631.6,0.14083674]
[1727348775644,4.559771,2631.7,2631.6,0.14083674]
[1727348776011,0.759951,2631.7,2631.6,0.14083674]
[1727348776204,3.7997,2631.8,2631.6,0.14083674]
[1727348776404,7.59949,2631.8,2631.6,0.14083674]
[1727348776636,3.7996,2631.9,2631.6,0.14083674]
[1727348776803,6.79969,2631.8,2631.6,0.14083674]
[1727348777338,3.0,2631.8,2631.6,0.14083674]
[1727348777541,6.79954,2631.9,2631.6,0.14083674]
[1727348777704,3.79969,2631.8,2631.6,0.14083674]
[1727348778042,3.0,2631.9,2631.6,0.14083674]
[1727348778347,3.0,2631.9,2631.6,1.8907712]
[1727348778837,6.79954,2631.9,2631.7,0.7532]
[1727348779205,6.79954,2631.9,2631.8,0.10212505]
[1727348779913,6.79954,2631.9,2631.7,0.7532]
[1727348780112,6.79954,2631.9,2631.8,0.10212505]
[1727348780319,3.0,2631.9,2631.7,0.7532]
[1727348780534,3.79968,2631.8,2631.7,0.7532]
[1727348781211,3.79968,2631.8,2631.6,0.0386782]
[1727348783824,7.59949,2631.8,2631.6,0.0386782]
[1727348784143,3.79982,2631.7,2631.6,0.0386782]
[1727348785016,3.79982,2631.7,2631.6,0.1410382]
[1727348786412,6.79954,2631.9,2631.6,0.1410382]
[1727348786717,0.7701,2632.0,2631.6,0.1410382]
[1727348786718,3.79968,2631.8,2631.6,0.1410382]
[1727348787545,3.79968,2631.8,2631.6,1.89097266]
[1727348787848,3.79953,2631.9,2631.6,1.89097266]
[1727348788032,3.0,2631.9,2631.6,1.89097266]
[1727348788347,3.79968,2631.8,2631.6,1.89097266]
[1727348788648,7.59948,2631.8,2631.6,0.1410382]
[1727348788854,3.79968,2631.8,2631.6,0.1410382]
[1727348791005,3.79982,2631.7,2631.6,0.1410382]
[1727348793232,3.79969,2631.8,2631.6,0.1410382]
[1727348793516,3.79982,2631.7,2631.6,0.1410382]
[1727348794082,3.79969,2631.8,2631.6,0.1410382]
[1727348795015,3.79969,2631.8,2631.6,1.89097266]
[1727348795361,3.79945,2632.0,2631.6,5.69092266]
[1727348795668,3.7996,2631.9,2631.6,1.89097266]
[1727348796935,3.79974,2631.8,2631.6,1.89097266]
[1727348797354,3.79974,2631.8,2631.6,0.1410382]
[1727348797728,3.79974,2631.8,2631.6,1.89097266]
[1727348798537,3.79961,2631.9,2631.6,1.89097266]
[1727348798743,7.59925,2631.9,2631.6,1.89097266]
[1727348799162,3.79969,2631.8,2631.6,1.89097266]
[1727348799663,3.79961,2631.9,2631.6,1.89097266]
[1727348800063,3.79961,2631.9,2631.6,2.92302526]
[1727348800267,7.59922,2631.9,2631.6,2.92302526]
[1727348800636,3.79961,2631.9,2631.6,2.92302526]
[1727348801774,3.79939,2632.0,2631.7,0.7758]
[1727348801968,3.798,2632.2,2631.7,0.7758]
[1727348802170,3.79927,2632.1,2631.8,1.85220767]
[1727348803668,3.79942,2632.0,2631.8,1.85220767]
[1727348803853,3.79942,2632.0,2631.8,0.10227321]
[1727348804166,3.79942,2632.0,2631.7,1.53328482]
[1727348804678,3.79942,2632.0,2631.8,0.10227321]
[1727348805165,3.79942,2632.0,2631.9,0.10220018]
[1727348805166,3.79939,2632.0,2631.9,0.10220018]
[1727348805372,3.79939,2632.0,2631.6,0.0386782]
[1727348805574,3.79939,2632.0,2631.7,0.10234625]
[1727348805775,3.79942,2632.0,2631.7,0.10234625]
[1727348805932,3.79966,2631.9,2631.7,0.10234625]
[1727348806335,3.79968,2631.8,2631.7,0.10234625]
[1727348806766,3.79966,2631.9,2631.7,0.10234625]
[1727348807277,3.79941,2632.0,2631.7,0.10234625]
[1727348807593,6.79875,2632.5,2631.8,2.65532732]
[1727348807735,0.06618591,2633.2,2632.3,1.74993446]
[1727348807736,7.36,2632.9,2632.3,1.74993446]
[1727348807938,0.7782,2632.8,2632.5,1.74993446]
[1727348808135,3.79819,2632.9,2632.6,0.10162981]
[1727348808386,7.59641,2632.9,2632.6,0.10162981]
[1727348808541,3.79794,2633.1,2632.7,1.74993446]
[1727348808735,3.79797,2633.0,2632.8,0.10122905]
[1727348808974,3.79797,2633.0,2632.7,1.74993446]
[1727348809138,3.79797,2633.0,2632.8,0.1012172]
[1727348809337,3.79797,2633.0,2632.7,1.74993446]
[1727348809534,3.79797,2633.0,2632.8,0.1012172]
[1727348809760,3.79797,2633.0,2632.7,1.74993446]
[1727348810078,3.79797,2633.0,2632.8,0.1012172]
[1727348810583,3.79755,2633.3,2633.0,0.7955]
[1727348810766,3.79755,2633.3,2633.1,1.74993446]
[1727348811078,3.79755,2633.3,2633.2,0.10092532]
[1727348812352,3.79734,2633.5,2633.0,0.7955]
[1727348812551,6.7975,2633.4,2633.1,0.10099829]
[1727348812756,3.79762,2633.3,2633.1,0.10099829]
[1727348816886,3.79744,2633.4,2633.1,0.10099829]
[1727348817049,3.79766,2633.2,2633.1,0.10099829]
[1727348817451,1.877861,2633.4,2632.7,0.7588]
[1727348817452,7.59604,2633.0,2632.7,0.7588]
[1727348817654,3.798,2633.0,2632.7,0.7588]
[1727348818555,3.79792,2633.1,2632.7,0.7588]
[1727348818796,3.79801,2633.0,2632.7,0.7588]
[1727348819887,3.79788,2633.1,2632.7,0.7588]
[1727348820085,4.61588,2633.4,2632.7,4.55712]
[1727348820287,3.79784,2633.1,2632.7,4.55712]
[1727348820504,3.79773,2633.2,2632.7,9.18009753]
[1727348820996,3.79789,2633.1,2632.7,5.38179753]
[1727348821302,0.8184,2633.4,2632.7,9.18010753]
[1727348821607,4.64650645,2635.6,2632.9,3.78844139]
[1727348821608,3.8166,2633.7,2632.9,3.78844139]
[1727348821762,3.79766,2633.2,2633.0,0.8237]
[1727348821962,7.5954,2633.2,2633.0,0.8237]
[1727348822307,3.7978,2633.1,2633.0,0.8237]
[1727348823170,3.79766,2633.2,2633.0,0.8237]
[1727348823171,3.79772,2633.2,2633.0,0.8237]
[1727348823679,3.79766,2633.2,2633.0,0.8237]
[1727348824680,3.0,2633.3,2633.0,0.8237]
[1727348825002,6.79754,2633.3,2633.0,0.8237]
[1727348826721,7.59541,2633.2,2633.0,0.8237]
[1727348826867,3.79767,2633.2,2632.8,0.8268]
[1727348827073,3.79767,2633.2,2632.8,2.04800214]
[1727348827570,3.79783,2633.1,2632.8,2.04800214]
[1727348827799,3.79767,2633.2,2632.8,0.8268]
[1727348828195,7.5954,2633.2,2632.8,0.8268]
[1727348828408,3.79767,2633.2,2632.8,0.8268]
[1727348829925,6.79753,2633.3,2632.9,0.09664962]
[1727348830222,3.79753,2633.3,2632.9,4.73609711]
[1727348830422,3.79753,2633.3,2632.9,3.88509101]
[1727348832105,3.7977,2633.2,2632.9,3.88509101]
[1727348832429,6.79723,2633.5,2633.0,4.62531]
[1727348832630,6.79723,2633.5,2633.1,0.85863558]
[1727348832920,6.79723,2633.5,2633.1,0.09650368]
[1727348833289,3.0,2633.5,2633.1,0.09650368]
[1727348833488,3.79724,2633.5,2633.1,0.09650368]
[1727348833692,3.79724,2633.5,2633.1,3.88494507]
[1727348833985,3.79724,2633.5,2633.1,7.68272507]
[1727348834330,3.79724,2633.5,2633.2,1.74809065]
[1727348834488,3.79724,2633.5,2633.3,0.09635777]
[1727348834822,3.0,2633.6,2633.5,0.7502]
[1727348835230,3.79701,2633.7,2633.5,0.84637052]
[1727348835401,3.79701,2633.7,2633.5,0.09617052]
[1727348835790,3.79708,2633.6,2633.5,0.09617052]
[1727348837708,3.79695,2633.7,2633.5,0.09617052]
[1727348838609,3.79708,2633.6,2633.5,0.09617052]
[1727348839161,3.79729,2633.5,2633.3,0.7611]
[1727348839730,3.79708,2633.6,2633.3,0.7611]
[1727348839930,7.59427,2633.6,2633.3,0.7611]
[1727348840234,3.79708,2633.6,2633.3,0.7611]
[1727348840538,3.79708,2633.6,2633.3,1.39179906]
[1727348840711,3.79691,2633.8,2633.4,1.74809065]
[1727348841236,7.59383,2633.8,2633.4,1.74809065]
[1727348841441,3.79696,2633.7,2633.4,1.74809065]
[1727348841593,3.79672,2633.9,2633.4,6.24672902]
[1727348841796,3.79686,2633.8,2633.4,2.44941902]
[1727348841996,7.59377,2633.8,2633.4,0.70132837]
[1727348842239,3.79695,2633.7,2633.4,0.70132837]
[1727348844447,3.79695,2633.7,2633.3,4.55855]
[1727348844606,3.59247451,2633.7,2633.3,4.55855]
[1727348844810,3.59247451,2633.7,2633.4,0.09600124]
[1727348845250,3.79681,2633.8,2633.4,0.09600124]
[1727348845546,3.79695,2633.7,2633.4,0.09600124]
[1727348846323,3.79695,2633.7,2633.4,0.36411463]
[1727348846723,3.79681,2633.8,2633.4,0.36411463]
[1727348847143,3.79694,2633.7,2633.4,0.36411463]
[1727348847351,3.79681,2633.8,2633.4,0.36411463]
[1727348847352,3.79708,2633.6,2633.4,0.36411463]
[1727348847550,3.79708,2633.6,2633.4,0.09600124]
[1727348847551,3.79722,2633.5,2633.4,0.09600124]
[1727348847756,3.79722,2633.5,2633.1,0.8226]
[1727348847951,3.79737,2633.4,2633.2,0.09614715]
[1727348848109,4.3628,2633.9,2633.3,3.79748]
[1727348848308,3.0,2633.7,2633.4,1.16156272]
[1727348848513,3.79703,2633.7,2633.4,0.86820124]
[1727348848930,3.79709,2633.6,2633.4,0.86820124]
[1727348849451,3.7971,2633.6,2633.4,0.86820124]
[1727348850756,3.79722,2633.5,2633.4,0.09600124]
[1727348850916,3.79713,2633.6,2633.4,0.09600124]
[1727348851119,3.79713,2633.6,2633.2,0.7821]
[1727348851439,3.79713,2633.6,2633.3,0.09607419]
[1727348851848,3.79713,2633.6,2633.2,1.41489907]
[1727348852052,3.79708,2633.7,2633.4,0.09600124]
[1727348852053,3.79729,2633.5,2633.4,0.09600124]
[1727348852260,3.79729,2633.5,2633.3,0.09607419]
[1727348852415,3.79729,2633.5,2633.4,0.09600124]
[1727348852815,3.79729,2633.5,2633.2,0.7821]
[1727348853039,3.79729,2633.5,2633.4,0.09597764]
[1727348853241,3.79729,2633.5,2633.3,0.09605059]
[1727348853427,3.79729,2633.5,2633.4,0.09597764]
[1727348854248,3.7971,2633.6,2633.2,0.7821]
[1727348854413,7.59432,2633.6,2633.2,0.7821]
[1727348854618,3.79737,2633.4,2633.3,0.09605059]
[1727348855118,3.79737,2633.4,2633.2,0.7821]
[1727348855440,3.79737,2633.4,2633.3,0.09295963]
[1727348855958,3.79723,2633.5,2633.2,0.7821]
[1727348856158,3.79723,2633.5,2633.3,0.55094963]
[1727348857058,3.79723,2633.5,2633.3,0.09295963]
[1727348857460,3.79737,2633.4,2633.2,0.7821]
[1727348859557,3.79723,2633.5,2633.2,0.7821]
[1727348859761,3.7974,2633.4,2633.2,0.7821]
[1727348859927,3.7974,2633.4,2633.3,0.0870834]
[1727348860366,3.7974,2633.4,2633.2,1.41491306]
[1727348860656,3.7974,2633.4,2633.3,0.0870834]
[1727348861263,0.39749745,2633.6,2633.2,1.41491306]
[1727348861468,3.79723,2633.5,2633.2,1.41491306]
[1727348861626,3.79723,2633.5,2633.3,0.08419197]
[1727348861627,3.79745,2633.4,2633.3,0.08419197]
[1727348861832,3.79823,2632.8,2632.7,0.7554]
[1727348862147,3.79811,2632.9,2632.7,0.7554]
[1727348862445,7.59581,2633.1,2632.7,0.83395218]
[1727348862662,3.79796,2633.0,2632.7,0.83395218]
[1727348863257,3.79796,2633.0,2632.7,1.85186346]
[1727348863867,3.79788,2633.1,2632.7,1.85186346]
[1727348864180,3.79795,2633.0,2632.7,1.85186346]
[1727348868456,3.79774,2633.2,2632.7,3.59995411]
[1727348868680,3.79774,2633.2,2632.8,0.74744382]
[1727348868879,3.79774,2633.2,2632.7,2.58204283]
[1727348869048,3.79774,2633.2,2632.9,0.07357083]
[1727348869375,3.79787,2633.1,2632.8,0.07364381]
[1727348869542,3.79787,2633.1,2633.0,0.07349786]
[1727348869991,4.61827,2633.1,2633.0,0.07349786]
[1727348870192,3.79816,2632.9,2632.5,0.7843]
[1727348870478,3.7983,2632.8,2632.5,0.7843]
[1727348870887,3.79878,2632.5,2632.3,0.7843]
[1727348871247,3.79878,2632.5,2632.0,11.2393]
[1727348871489,7.59753,2632.5,2632.1,2.46298307]
[1727348871649,7.59754,2632.5,2632.1,2.46298307]
[1727348872046,3.79875,2632.5,2632.1,2.46298307]
[1727348872282,3.79881,2632.4,2632.1,2.46298307]
[1727348872588,3.79875,2632.5,2632.1,0.7843]
[1727348872742,7.59753,2632.5,2632.1,0.7843]
[1727348873088,3.79875,2632.5,2632.1,4.58354]
[1727348873410,3.79875,2632.5,2632.1,0.7843]
[1727348875085,3.79875,2632.5,2632.2,0.06918259]
[1727348879080,3.79853,2632.6,2632.2,0.06918259]
[1727348879688,3.79869,2632.5,2632.2,0.06918259]
[1727348880293,3.79869,2632.5,2632.2,0.61828465]
[1727348881504,3.79792,2633.1,2632.4,0.7671]
[1727348881807,1.19902981,2633.3,2632.6,0.7671]
[1727348881959,1.19902981,2633.3,2632.5,3.93394761]
[1727348881960,0.39752981,2633.3,2632.9,3.79802]
[1727348882160,3.79754,2633.3,2633.0,0.7671]
[1727348882473,3.79747,2633.4,2633.0,0.7671]
[1727348882681,3.79729,2633.5,2633.0,1.2900223]
[1727348883000,3.79729,2633.5,2633.0,5.0878623]
[1727348883963,3.79738,2633.4,2633.0,1.2900223]
[1727348884690,3.79738,2633.4,2633.0,5.0879623]
[1727348885295,3.79751,2633.3,2633.0,1.2900223]
[1727348885463,3.79751,2633.3,2633.0,0.8335103]
[1727348886192,3.7978,2633.1,2633.0,0.0664103]
[1727348886500,3.7978,2633.1,2632.8,0.8028]
[1727348886716,7.59569,2633.1,2633.0,0.06629827]
[1727348886905,8.34889,2633.1,2633.0,0.06629827]
[1727348887212,3.79794,2633.0,2632.9,0.06637124]
[1727348887364,3.79812,2632.9,2632.3,4.6119]
[1727348887570,3.79844,2632.7,2632.3,5.453011]
[1727348887798,3.79844,2632.7,2632.3,1.654111]
[1727348888525,3.79854,2632.6,2632.3,0.813]
[1727348888816,7.59717,2632.6,2632.3,0.813]
[1727348889229,3.79854,2632.6,2632.3,0.813]
[1727348889404,7.59719,2632.6,2632.3,0.813]
[1727348889729,7.59717,2632.6,2632.3,0.813]
[1727348889895,7.59717,2632.6,2632.4,0.06064152]
[1727348890493,3.79854,2632.6,2632.4,0.06064152]
[1727348890699,7.59719,2632.6,2632.1,4.60134]
[1727348890898,3.79854,2632.6,2632.5,0.06079267]
[1727348891123,3.79868,2632.5,2632.1,0.8021]
[1727348891325,3.79868,2632.5,2632.1,2.38619]
[1727348891814,3.79868,2632.5,2632.1,0.8021]
[1727348892019,3.79896,2632.3,2631.9,0.8262]
[1727348892228,4.62526,2632.3,2631.7,4.626]
[1727348892522,3.79911,2632.2,2631.8,1.21046782]
[1727348893014,0.8263,2632.3,2631.7,0.8262]
[1727348893391,3.79938,2632.1,2631.7,0.8262]
[1727348893793,3.79938,2632.1,2631.7,2.41667882]
[1727348896010,3.79939,2632.0,2631.7,2.41667882]
[1727348896334,3.79939,2632.0,2631.7,0.8262]
[1727348896532,3.79921,2632.2,2631.7,0.8262]
[1727348896849,3.79935,2632.1,2631.7,0.8262]
[1727348897009,3.7994,2632.0,2631.7,0.8262]
[1727348897733,3.79926,2632.1,2631.7,4.62601]
[1727348897943,3.79926,2632.1,2631.7,0.8262]
[1727348898097,8.15742,2631.7,2631.6,0.0386782]
[1727348902771,58.65742,2631.7,2631.6,0.0386782]
[1727348902946,38.276343,2631.7,2631.6,0.0386782]
[1727348903161,30.84985708,2631.7,2631.6,0.0386782]
[1727348903356,4.60728,2630.9,2630.8,0.0386782]
[1727348903687,4.60728,2630.9,2630.0,0.0386782]
[1727348903688,3.80213,2630.1,2630.0,0.0386782]
[1727348903872,3.0,2630.3,2630.0,0.0386782]
[1727348904073,3.0,2630.3,2630.0,0.08702146]
[1727348904245,6.80187,2630.3,2630.0,0.08702146]
[1727348904446,3.0,2630.3,2630.0,0.08702146]
[1727348904650,3.80208,2630.2,2630.0,0.0386782]
[1727348904949,10.60364,2630.4,2630.0,0.0386782]
[1727348905145,6.8018,2630.4,2630.1,0.04853565]
[1727348905349,3.0,2630.2,2630.1,0.04853565]
[1727348905650,6.80199,2630.2,2630.1,0.04853565]
[1727348906086,3.0,2630.2,2630.1,0.04853565]
[1727348906293,6.80199,2630.2,2630.1,0.04853565]
[1727348908077,3.0,2630.2,2630.1,0.04853565]
[1727348908292,3.0,2630.2,2630.1,0.84733565]
[1727348908466,6.80164,2630.5,2630.1,0.84733565]
[1727348908795,3.80191,2630.3,2630.1,0.84733565]
[1727348909396,3.8017,2630.4,2630.1,0.84733565]
[1727348911262,6.80164,2630.5,2630.1,4.64943565]
[1727348911263,3.0,2630.5,2630.1,4.64943565]
[1727348911489,3.0,2630.4,2630.1,0.84733565]
[1727348912379,3.0,2630.5,2630.1,4.64945565]
[1727348913106,3.80142,2630.6,2630.1,5.11818903]
[1727348914787,3.0,2630.7,2630.1,1.39218316]
[1727348915009,3.0,2630.7,2630.3,3.80176]
[1727348915181,3.0,2630.7,2630.4,4.62548]
[1727348915501,3.80122,2630.8,2630.4,0.87320146]
[1727348916011,7.60244,2630.8,2630.4,0.87320146]
[1727348917005,6.80089,2631.0,2630.4,5.14996047]
[1727348917209,6.80089,2631.0,2630.5,3.80148]
[1727348917210,3.0,2630.9,2630.5,3.80148]
[1727348917505,3.0,2630.9,2630.6,0.0489779]
[1727348917663,6.80098,2630.9,2630.6,0.0489779]
[1727348918003,3.80098,2630.9,2630.6,0.0489779]
[1727348919901,7.60204,2630.9,2630.6,0.0489779]
[1727348920118,3.80098,2630.9,2630.6,0.0489779]
[1727348920631,3.80098,2630.9,2630.4,4.62542]
[1727348920816,3.80098,2630.9,2630.7,0.04886941]
[1727348920817,7.60204,2630.9,2630.7,0.04886941]
[1727348920996,7.60204,2630.9,2630.4,4.62542]
[1727348921196,7.60204,2630.9,2630.8,0.04879631]
[1727348921393,7.60204,2630.9,2630.4,4.62542]
[1727348921394,3.80123,2630.8,2630.4,0.8238]
[1727348921599,3.80123,2630.8,2630.4,1.67415819]
[1727348922734,3.80134,2630.7,2630.4,0.8238]
[1727348923500,3.80155,2630.5,2630.4,0.8238]
[1727348923720,3.80165,2630.5,2630.2,0.8076]
[1727348923922,3.80172,2630.4,2630.2,0.8076]
[1727348924137,3.80165,2630.5,2630.2,0.8076]
[1727348924358,3.80184,2630.3,2630.2,0.8076]
[1727348924931,3.80205,2630.2,2630.0,0.8462782]
[1727348925254,3.80213,2630.1,2630.0,0.0386782]
[1727348925415,4.182335,2630.1,2630.0,0.0386782]
[1727348926507,3.80199,2630.2,2630.0,0.7993782]
[1727348926508,3.802,2630.2,2630.0,0.7993782]
[1727348926930,6.80185,2630.3,2630.0,0.7993782]
[1727348927142,3.80207,2630.2,2630.0,0.7993782]
[1727348928633,3.80142,2630.6,2630.1,3.80202]
[1727348928942,3.80142,2630.6,2630.0,5.06180202]
[1727348928943,3.80161,2630.5,2630.0,5.06180202]
[1727348929146,3.80161,2630.5,2630.0,4.6016082]
[1727348929551,3.80141,2630.6,2630.1,3.80209]
[1727348929864,3.0,2630.5,2630.0,4.6016082]
[1727348930931,3.0,2630.5,2630.0,0.7993782]
[1727348930932,3.80192,2630.3,2630.0,0.7993782]
[1727348931140,3.80213,2630.1,2630.0,0.0386782]
[1727348931837,4.643295,2630.1,2630.0,0.0386782]
[1727348932838,0.841165,2630.1,2630.0,0.0386782]
[1727348933169,3.80199,2630.2,2630.0,0.0386782]
[1727348933668,3.0,2630.2,2630.0,0.8286782]
[1727348934384,6.80202,2630.2,2630.0,0.8286782]
[1727348934964,6.80202,2630.2,2630.1,0.04091382]
[1727348935459,6.80199,2630.2,2630.1,0.04091382]
[1727348939351,3.80157,2630.5,2630.1,0.04091382]
[1727348939659,3.0,2630.4,2630.1,0.04091382]
[1727348939853,3.0,2630.4,2630.1,3.84304382]
[1727348940171,4.56767,2630.9,2630.1,3.84304382]
[1727348940172,3.80143,2630.6,2630.2,0.7861]
[1727348940486,4.5617,2630.6,2630.3,0.04323519]
[1727348940683,3.80163,2630.5,2630.3,0.04323519]
[1727348942558,3.0,2630.5,2630.3,0.04323519]
[1727348942761,6.80157,2630.5,2630.3,0.04323519]
[1727348944598,6.80142,2630.6,2630.1,3.8021]
[1727348944896,6.80142,2630.6,2630.1,4.64862382]
[1727348945188,6.80142,2630.6,2630.2,0.04692953]
[1727348946499,3.80181,2630.4,2630.2,0.04692953]
[1727348946784,3.80181,2630.4,2630.0,0.8608782]
[1727348946785,4.181991,2630.4,2630.0,0.8608782]
[1727348946988,3.80181,2630.4,2630.3,0.04323519]
[1727348947185,3.80181,2630.4,2630.0,4.6630782]
[1727348947374,3.80181,2630.4,2630.3,0.05383734]
[1727348947584,3.80181,2630.4,2630.0,4.6630782]
[1727348947795,3.80181,2630.4,2630.3,0.05383734]
[1727348947948,3.80181,2630.4,2630.0,4.6630782]
[1727348948151,3.80181,2630.4,2630.3,0.05383734]
[1727348948346,3.80181,2630.4,2630.0,4.6630782]
[1727348949006,3.80181,2630.4,2630.1,0.05405671]
[1727348951350,3.80181,2630.4,2630.0,4.6630782]
[1727348951351,3.80181,2630.4,2630.0,4.60233491]
[1727348951552,3.80181,2630.4,2630.2,0.05690848]
[1727348951751,3.80181,2630.4,2630.1,0.05703036]
[1727348952012,3.80181,2630.4,2630.3,0.05678661]
[1727348952214,3.80181,2630.4,2630.2,0.05690848]
[1727348952404,3.80181,2630.4,2630.3,0.05678661]
[1727348952782,3.80207,2630.2,2629.7,3.80268]
[1727348953021,3.80207,2630.2,2629.8,3.80252]
[1727348953513,3.80207,2630.2,2629.5,7.44]
[1727348953714,3.80207,2630.2,2629.7,3.80265]
[1727348954214,3.80214,2630.1,2629.7,3.80265]
[1727348954415,3.80214,2630.1,2629.7,4.60405]
[1727348954611,3.80207,2630.2,2629.7,4.60403]
[1727348954781,7.60419,2630.2,2629.7,4.60403]
[1727348954981,3.80207,2630.2,2629.7,4.60403]
[1727348955183,7.60417,2630.2,2629.7,4.60403]
[1727348955751,4.60274645,2630.2,2629.7,4.60403]
[1727348956020,3.802,2630.2,2629.7,4.604]
[1727348956499,3.802,2630.2,2629.8,3.80256]
[1727348957082,3.0,2630.3,2629.8,3.80255]
[1727348957513,3.80199,2630.2,2629.7,8.40662]
[1727348957721,3.80215,2630.1,2629.7,4.604]
[1727348958487,6.80194,2630.3,2629.8,3.80254]
[1727348958896,6.80194,2630.3,2629.9,0.05744135]
[1727348959124,3.80201,2630.2,2629.9,0.05744135]
[1727348959916,3.80201,2630.2,2629.7,4.604]
[1727348960384,3.80201,2630.2,2629.8,0.05776981]
[1727348960720,3.80201,2630.2,2629.7,4.604]
[1727348960927,3.80201,2630.2,2629.8,0.05776981]
[1727348961331,3.80201,2630.2,2629.7,4.604]
[1727348961529,3.80201,2630.2,2629.9,0.05764791]
[1727348961694,7.60411,2630.2,2629.8,0.05776981]
[1727348961902,3.80201,2630.2,2629.7,4.604]
[1727348962202,3.80201,2630.2,2629.8,0.05776981]
[1727348962382,3.80216,2630.1,2629.8,0.05776981]
[1727348962721,3.80216,2630.1,2629.9,0.05764791]
[1727348962879,3.80216,2630.1,2629.7,4.604]
[1727348963084,3.80216,2630.1,2629.8,0.05776981]
[1727348963311,3.80216,2630.1,2629.7,8.40662]
[1727348963486,6.8019,2630.3,2629.8,3.86023981]
[1727348963693,4.62916,2630.5,2630.0,3.80227]
[1727348963901,4.62916,2630.5,2630.1,3.85946412]
[1727348963902,3.0,2630.5,2630.1,3.85946412]
[1727348964127,3.80171,2630.4,2630.1,0.05740412]
[1727348964430,3.0,2630.3,2630.1,0.05740412]
[1727348964789,3.0,2630.3,2629.9,4.60861]
[1727348964987,3.0,2630.3,2630.2,0.05728224]
[1727348965190,3.0,2630.3,2629.9,4.60861]
[1727348965415,3.0,2630.3,2630.2,0.05728224]
[1727348965627,3.0,2630.3,2630.0,3.80227]
[1727348965793,3.0,2630.3,2630.2,0.05728224]
[1727348965989,3.0,2630.3,2630.1,0.05740412]
[1727348966191,3.0,2630.3,2630.2,0.05728224]
[1727348966615,3.0,2630.3,2629.9,4.6086]